[Event "*** Titled Tuesday Blitz"]
[Site "Chess.com"]
[Date "2019.12.03"]
[Round "2"]
[White "nurgyulsalimova"]
[Black "Walter_White_Poland"]
[Result "1-0"]
[WhiteElo "2534"]
[BlackElo "2304"]
[TimeControl "180+2"]
[EndTime "13:17:02 PST"]
[Termination "nurgyulsalimova won by resignation"]

1. e4 {[%clk 0:03:01.9]} 1... e5 {[%clk 0:02:59.6]} 2. Nf3 {[%clk 0:03:03]} 2...
Nc6 {[%clk 0:02:59.4]} 3. Bc4 {[%clk 0:03:04.1]} 3... Nf6 {[%clk 0:02:59.2]} 4.
d3 {[%clk 0:03:04]} 4... d5 {[%clk 0:03:00.2]} 5. exd5 {[%clk 0:03:04.3]} 5...
Nxd5 {[%clk 0:03:02.1]} 6. O-O {[%clk 0:03:05.4]} 6... Nb6 {[%clk 0:03:03.1]} 7.
Bb5 {[%clk 0:03:05.6]} 7... Bd6 {[%clk 0:03:03.8]} 8. Re1 {[%clk 0:03:05.8]}
8... f6 {[%clk 0:03:04.8]} 9. a4 {[%clk 0:03:01.1]} 9... Bd7 {[%clk 0:02:32.8]}
10. a5 {[%clk 0:02:58.5]} 10... Nd5 {[%clk 0:02:31.3]} 11. a6 {[%clk 0:02:59.5]}
11... b6 {[%clk 0:02:27.7]} 12. d4 {[%clk 0:03:00.3]} 12... Nde7 {[%clk
0:02:06.8]} 13. dxe5 {[%clk 0:02:50.7]} 13... fxe5 {[%clk 0:01:51]} 14. Nc3
{[%clk 0:02:37]} 14... O-O {[%clk 0:01:50.6]} 15. Bg5 {[%clk 0:02:35.2]} 15...
Qe8 {[%clk 0:01:28.1]} 16. Ne4 {[%clk 0:02:33.7]} 16... Qg6 {[%clk 0:01:22.7]}
17. Nxd6 {[%clk 0:02:34.3]} 17... cxd6 {[%clk 0:01:20.5]} 18. Bxe7 {[%clk
0:02:34.6]} 18... Rxf3 {[%clk 0:01:15.1]} 19. Qxf3 {[%clk 0:02:33.7]} 19... Nd4
{[%clk 0:01:15.8]} 20. Qxa8+ {[%clk 0:02:33.5]} 1-0

[Event "*** Titled Tuesday Blitz"]
[Site "Chess.com"]
[Date "2019.12.03"]
[Round "2"]
[White "Bad4life"]
[Black "DonBroca"]
[Result "1-0"]
[WhiteElo "2409"]
[BlackElo "2107"]
[TimeControl "180+2"]
[EndTime "13:17:02 PST"]
[Termination "Bad4life won by resignation"]

1. e4 {[%clk 0:03:01.9]} 1... g6 {[%clk 0:02:59.3]} 2. d4 {[%clk 0:03:02.7]}
2... Bg7 {[%clk 0:03:00.7]} 3. Nc3 {[%clk 0:03:04.2]} 3... d6 {[%clk 0:03:01.8]}
4. f4 {[%clk 0:03:05.3]} 4... Nd7 {[%clk 0:03:02.2]} 5. Nf3 {[%clk 0:03:06.5]}
5... e6 {[%clk 0:03:02.7]} 6. Bd3 {[%clk 0:03:06.3]} 6... Ne7 {[%clk 0:03:03.5]}
7. Ne2 {[%clk 0:03:07.9]} 7... O-O {[%clk 0:03:04.1]} 8. O-O {[%clk 0:03:08.7]}
8... c5 {[%clk 0:03:02.5]} 9. c3 {[%clk 0:03:10]} 9... a6 {[%clk 0:02:58.3]} 10.
Kh1 {[%clk 0:03:11]} 10... b5 {[%clk 0:02:59.2]} 11. a4 {[%clk 0:03:11.9]} 11...
c4 {[%clk 0:02:59.5]} 12. Bc2 {[%clk 0:03:12.8]} 12... Bb7 {[%clk 0:02:52.7]}
13. Qe1 {[%clk 0:03:13.3]} 13... d5 {[%clk 0:02:48.4]} 14. e5 {[%clk 0:03:14]}
14... Nf5 {[%clk 0:02:46.3]} 15. g4 {[%clk 0:03:13.8]} 15... Ne7 {[%clk
0:02:46.3]} 16. Be3 {[%clk 0:03:14.4]} 16... h6 {[%clk 0:02:45.2]} 17. Qh4
{[%clk 0:03:13.3]} 17... Nc6 {[%clk 0:02:17.7]} 18. Qh3 {[%clk 0:03:12.3]} 18...
Nb6 {[%clk 0:02:07.9]} 19. a5 {[%clk 0:03:09.8]} 19... Nd7 {[%clk 0:02:05.8]}
20. Rf2 {[%clk 0:03:08.5]} 20... Kh7 {[%clk 0:02:01.5]} 21. Rg1 {[%clk
0:03:09.1]} 21... Ne7 {[%clk 0:01:58.3]} 22. f5 {[%clk 0:03:10.4]} 22... exf5
{[%clk 0:01:57.2]} 23. gxf5 {[%clk 0:03:11.8]} 23... Ng8 {[%clk 0:01:52]} 24.
fxg6+ {[%clk 0:03:09.7]} 24... fxg6 {[%clk 0:01:51.7]} 25. Rxg6 {[%clk
0:03:10.4]} 25... Kh8 {[%clk 0:01:34.4]} 26. Bxh6 {[%clk 0:03:10.6]} 1-0

[Event "*** Titled Tuesday Blitz"]
[Site "Chess.com"]
[Date "2019.12.03"]
[Round "2"]
[White "marcodobrikov"]
[Black "CaptainCasanova"]
[Result "1-0"]
[WhiteElo "2355"]
[BlackElo "2676"]
[TimeControl "180+2"]
[EndTime "13:17:29 PST"]
[Termination "marcodobrikov won by resignation"]

1. e4 {[%clk 0:03:01.9]} 1... c5 {[%clk 0:03:01]} 2. Nf3 {[%clk 0:03:01.6]} 2...
Nc6 {[%clk 0:03:02.4]} 3. d4 {[%clk 0:03:02]} 3... cxd4 {[%clk 0:03:04.3]} 4.
Nxd4 {[%clk 0:03:03.5]} 4... e5 {[%clk 0:03:06.2]} 5. Nb5 {[%clk 0:03:03.8]}
5... d6 {[%clk 0:03:07.9]} 6. c4 {[%clk 0:03:04.6]} 6... a6 {[%clk 0:03:09.5]}
7. N5a3 {[%clk 0:03:05.3]} 7... g6 {[%clk 0:03:11.2]} 8. Nc3 {[%clk 0:03:06.2]}
8... Bg7 {[%clk 0:03:12.8]} 9. Bd3 {[%clk 0:03:06.4]} 9... Nge7 {[%clk
0:03:13.8]} 10. Nc2 {[%clk 0:03:07.2]} 10... O-O {[%clk 0:03:15.7]} 11. O-O
{[%clk 0:03:08.3]} 11... Be6 {[%clk 0:03:17.1]} 12. Be3 {[%clk 0:03:03.2]} 12...
f5 {[%clk 0:03:17.3]} 13. exf5 {[%clk 0:03:03.8]} 13... Nxf5 {[%clk 0:03:17.6]}
14. Qd2 {[%clk 0:02:58.9]} 14... Rc8 {[%clk 0:03:15.6]} 15. Rad1 {[%clk
0:02:57.4]} 15... Ncd4 {[%clk 0:03:11.6]} 16. b3 {[%clk 0:02:57.9]} 16... Nxe3
{[%clk 0:02:47.3]} 17. Nxe3 {[%clk 0:02:56.5]} 17... Bh6 {[%clk 0:02:39.6]} 18.
Be4 {[%clk 0:02:56.4]} 18... b5 {[%clk 0:02:33.7]} 19. Bd5 {[%clk 0:02:45.9]}
19... Qd7 {[%clk 0:02:31.2]} 20. Qd3 {[%clk 0:02:44.3]} 20... Kh8 {[%clk
0:02:29.6]} 21. Bxe6 {[%clk 0:02:44]} 21... Qxe6 {[%clk 0:02:31.5]} 22. Ncd5
{[%clk 0:02:44.1]} 22... bxc4 {[%clk 0:02:30.5]} 23. bxc4 {[%clk 0:02:44.5]}
23... Bg7 {[%clk 0:02:28.2]} 24. Qe4 {[%clk 0:02:42.7]} 24... a5 {[%clk
0:02:23.7]} 25. Rxd4 {[%clk 0:02:43.1]} 25... Qf7 {[%clk 0:02:06.6]} 26. Rd2
{[%clk 0:02:42]} 26... Rb8 {[%clk 0:01:52.2]} 27. Rb1 {[%clk 0:02:40.1]} 27...
Rbc8 {[%clk 0:01:48.1]} 28. Rb6 {[%clk 0:02:37.7]} 28... Qa7 {[%clk 0:01:40.4]}
29. Rxd6 {[%clk 0:02:35.7]} 29... Qc5 {[%clk 0:01:42.3]} 30. Rd7 {[%clk
0:02:35.5]} 30... Qa3 {[%clk 0:01:42.3]} 31. h4 {[%clk 0:02:35.2]} 31... Bh6
{[%clk 0:01:38.5]} 32. Qxe5+ {[%clk 0:02:29.6]} 1-0

[Event "*** Titled Tuesday Blitz"]
[Site "Chess.com"]
[Date "2019.12.03"]
[Round "2"]
[White "Jenia84"]
[Black "Tiqr777"]
[Result "0-1"]
[WhiteElo "2206"]
[BlackElo "2637"]
[TimeControl "180+2"]
[EndTime "13:17:51 PST"]
[Termination "Tiqr777 won by resignation"]

1. e4 {[%clk 0:03:00.3]} 1... g6 {[%clk 0:02:59.6]} 2. d4 {[%clk 0:03:00.6]}
2... Bg7 {[%clk 0:03:00.2]} 3. Nc3 {[%clk 0:02:59.5]} 3... d6 {[%clk 0:03:00.3]}
4. Nf3 {[%clk 0:02:59.8]} 4... Nf6 {[%clk 0:02:59.4]} 5. Be3 {[%clk 0:03:00.4]}
5... O-O {[%clk 0:02:59.2]} 6. Bd3 {[%clk 0:02:57.1]} 6... Nc6 {[%clk
0:02:59.8]} 7. Qd2 {[%clk 0:02:56.2]} 7... e5 {[%clk 0:03:00.7]} 8. Ne2 {[%clk
0:02:51.2]} 8... exd4 {[%clk 0:02:56.9]} 9. Nexd4 {[%clk 0:02:51.2]} 9... d5
{[%clk 0:02:55.7]} 10. Nxc6 {[%clk 0:02:38.5]} 10... bxc6 {[%clk 0:02:55.8]} 11.
e5 {[%clk 0:02:32.4]} 11... Ng4 {[%clk 0:02:53.1]} 12. O-O-O {[%clk 0:02:31.4]}
12... Nxe3 {[%clk 0:02:40.8]} 13. Qxe3 {[%clk 0:02:30.9]} 13... Bg4 {[%clk
0:02:40.6]} 14. Qc5 {[%clk 0:02:15.7]} 14... Qd7 {[%clk 0:02:33.9]} 15. Rhe1
{[%clk 0:02:12.8]} 15... Rfe8 {[%clk 0:02:33.3]} 16. Ba6 {[%clk 0:02:01.1]}
16... Rab8 {[%clk 0:02:31.5]} 17. Qc3 {[%clk 0:01:53.5]} 17... Rb6 {[%clk
0:02:30.2]} 18. Bf1 {[%clk 0:01:48.3]} 18... Bxf3 {[%clk 0:02:27.8]} 19. gxf3
{[%clk 0:01:48.6]} 19... Qf5 {[%clk 0:02:28.1]} 20. Qa3 {[%clk 0:01:31.6]} 20...
Rxe5 {[%clk 0:02:21.5]} 21. Qxa7 {[%clk 0:01:23.1]} 21... Qf4+ {[%clk
0:02:12.2]} 22. Kb1 {[%clk 0:01:09.4]} 22... Rxb2+ {[%clk 0:02:11.6]} 23. Kxb2
{[%clk 0:01:08.5]} 23... Rxe1+ {[%clk 0:02:10.1]} 0-1

[Event "*** Titled Tuesday Blitz"]
[Site "Chess.com"]
[Date "2019.12.03"]
[Round "2"]
[White "Kislov_Oleg"]
[Black "Everyfishknows"]
[Result "1-0"]
[WhiteElo "2521"]
[BlackElo "2299"]
[TimeControl "180+2"]
[EndTime "13:17:51 PST"]
[Termination "Kislov_Oleg won by resignation"]

1. e4 {[%clk 0:03:01.9]} 1... e5 {[%clk 0:03:00.6]} 2. Nf3 {[%clk 0:03:02.5]}
2... Nc6 {[%clk 0:03:01.6]} 3. d4 {[%clk 0:03:03]} 3... exd4 {[%clk 0:03:02.7]}
4. Nxd4 {[%clk 0:03:04.5]} 4... Bb4+ {[%clk 0:03:03]} 5. c3 {[%clk 0:03:04.6]}
5... Bc5 {[%clk 0:03:04.1]} 6. Be3 {[%clk 0:03:05]} 6... Bb6 {[%clk 0:03:05.2]}
7. Bc4 {[%clk 0:03:02.3]} 7... Nf6 {[%clk 0:03:05.5]} 8. Nxc6 {[%clk 0:03:00.3]}
8... bxc6 {[%clk 0:03:05.6]} 9. e5 {[%clk 0:03:01.2]} 9... Nd5 {[%clk
0:02:54.2]} 10. Bxd5 {[%clk 0:02:59]} 10... cxd5 {[%clk 0:02:55]} 11. Qg4 {[%clk
0:02:59.2]} 11... Bxe3 {[%clk 0:02:35.3]} 12. Qxg7 {[%clk 0:02:42.6]} 12... Rf8
{[%clk 0:02:36.1]} 13. fxe3 {[%clk 0:02:42.7]} 13... Qh4+ {[%clk 0:02:20.6]} 14.
Qg3 {[%clk 0:02:42.7]} 14... Qe4 {[%clk 0:02:17.1]} 15. O-O {[%clk 0:02:31.5]}
15... Ba6 {[%clk 0:02:15.5]} 16. Nd2 {[%clk 0:02:07.4]} 16... Qg6 {[%clk
0:02:06.6]} 17. Rf6 {[%clk 0:02:02.6]} 17... Qxg3 {[%clk 0:02:02.7]} 18. hxg3
{[%clk 0:02:03.7]} 18... Ke7 {[%clk 0:02:03.7]} 19. Rxa6 {[%clk 0:02:04.1]}
19... c6 {[%clk 0:02:00.6]} 20. Nf3 {[%clk 0:01:59.8]} 20... Rg8 {[%clk
0:02:01.3]} 21. Kf2 {[%clk 0:01:59.9]} 21... Rg4 {[%clk 0:02:02.1]} 22. Rh1
{[%clk 0:01:58.4]} 22... Rag8 {[%clk 0:02:03]} 23. Rh3 {[%clk 0:01:56.7]} 23...
h5 {[%clk 0:01:41.7]} 24. Rxa7 {[%clk 0:01:55.7]} 24... h4 {[%clk 0:01:39.9]}
25. Nxh4 {[%clk 0:01:54.1]} 25... R8g5 {[%clk 0:01:40.7]} 26. Nf3 {[%clk
0:01:54.2]} 26... Rf5 {[%clk 0:01:41.7]} 27. Rh4 {[%clk 0:01:52.8]} 27... Rg8
{[%clk 0:01:40.8]} 28. Rf4 {[%clk 0:01:51.4]} 28... Rh5 {[%clk 0:01:41.3]} 29.
Nd4 {[%clk 0:01:52.1]} 29... Rb8 {[%clk 0:01:40.2]} 30. Nxc6+ {[%clk 0:01:52.8]}
1-0

[Event "*** Titled Tuesday Blitz"]
[Site "Chess.com"]
[Date "2019.12.03"]
[Round "2"]
[White "Kildepiotr"]
[Black "SHIVACalypso"]
[Result "1-0"]
[WhiteElo "2525"]
[BlackElo "2295"]
[TimeControl "180+2"]
[EndTime "13:18:06 PST"]
[Termination "Kildepiotr won by resignation"]

1. Nf3 {[%clk 0:03:01.3]} 1... Nf6 {[%clk 0:03:00]} 2. g3 {[%clk 0:03:02.7]}
2... g6 {[%clk 0:03:00.6]} 3. Bg2 {[%clk 0:03:04.2]} 3... Bg7 {[%clk 0:03:02.1]}
4. O-O {[%clk 0:03:05.8]} 4... O-O {[%clk 0:03:03.7]} 5. d4 {[%clk 0:03:07.1]}
5... d5 {[%clk 0:03:03.1]} 6. c4 {[%clk 0:03:07.9]} 6... dxc4 {[%clk 0:02:58.9]}
7. Na3 {[%clk 0:03:08.8]} 7... c3 {[%clk 0:02:59.2]} 8. bxc3 {[%clk 0:03:09.8]}
8... c5 {[%clk 0:03:00.1]} 9. Qb3 {[%clk 0:03:10.9]} 9... Nc6 {[%clk 0:02:56.1]}
10. Rd1 {[%clk 0:03:11.8]} 10... Qb6 {[%clk 0:02:43]} 11. Nc4 {[%clk 0:03:10.9]}
11... Qxb3 {[%clk 0:02:43.4]} 12. axb3 {[%clk 0:03:11.8]} 12... cxd4 {[%clk
0:02:44]} 13. cxd4 {[%clk 0:03:12.8]} 13... Bf5 {[%clk 0:02:32.5]} 14. Ne1
{[%clk 0:03:02]} 14... Be4 {[%clk 0:02:26]} 15. Ba3 {[%clk 0:03:01.3]} 15...
Rfd8 {[%clk 0:02:19]} 16. e3 {[%clk 0:03:00]} 16... Bxg2 {[%clk 0:02:15.1]} 17.
Kxg2 {[%clk 0:03:00.5]} 17... Nd5 {[%clk 0:02:15.4]} 18. Nd3 {[%clk 0:02:59.5]}
18... e6 {[%clk 0:02:05.5]} 19. Nc5 {[%clk 0:02:55.6]} 19... b6 {[%clk
0:02:02.1]} 20. Ne4 {[%clk 0:02:56.3]} 20... Bf8 {[%clk 0:02:02.2]} 21. Bxf8
{[%clk 0:02:55.5]} 21... Kxf8 {[%clk 0:02:04.1]} 22. Rdc1 {[%clk 0:02:51.3]}
22... Ncb4 {[%clk 0:01:53.8]} 23. Ne5 {[%clk 0:02:49.8]} 23... a5 {[%clk
0:01:44.9]} 24. Ng5 {[%clk 0:02:48.2]} 24... Ra7 {[%clk 0:01:35]} 25. Nxh7+
{[%clk 0:02:41.1]} 25... Ke7 {[%clk 0:01:20.1]} 26. Ng5 {[%clk 0:02:37.9]} 26...
Kf6 {[%clk 0:00:59.5]} 27. Ne4+ {[%clk 0:02:35.8]} 27... Kf5 {[%clk 0:00:54.3]}
28. Kf3 {[%clk 0:02:34.5]} 1-0

[Event "*** Titled Tuesday Blitz"]
[Site "Chess.com"]
[Date "2019.12.03"]
[Round "2"]
[White "TST2014"]
[Black "LonesomeGeorge1"]
[Result "0-1"]
[WhiteElo "2511"]
[BlackElo "2317"]
[TimeControl "180+2"]
[EndTime "13:18:18 PST"]
[Termination "LonesomeGeorge1 won by checkmate"]

1. d4 {[%clk 0:03:01.9]} 1... Nf6 {[%clk 0:03:00.8]} 2. c4 {[%clk 0:03:00.8]}
2... e6 {[%clk 0:03:01.8]} 3. Nf3 {[%clk 0:03:01.1]} 3... d5 {[%clk 0:03:02.3]}
4. Nc3 {[%clk 0:03:00.6]} 4... a6 {[%clk 0:03:03.2]} 5. c5 {[%clk 0:02:58.8]}
5... b6 {[%clk 0:03:03.3]} 6. cxb6 {[%clk 0:02:57.7]} 6... cxb6 {[%clk
0:03:05.2]} 7. Bf4 {[%clk 0:02:57.7]} 7... Bd6 {[%clk 0:03:06.4]} 8. e3 {[%clk
0:02:56.1]} 8... O-O {[%clk 0:03:05.9]} 9. Ne5 {[%clk 0:02:53.7]} 9... Bb7
{[%clk 0:03:06]} 10. Bd3 {[%clk 0:02:51.3]} 10... Nc6 {[%clk 0:02:58.8]} 11. Qf3
{[%clk 0:02:46.6]} 11... Rc8 {[%clk 0:02:53]} 12. Qh3 {[%clk 0:02:46.2]} 12...
g6 {[%clk 0:02:52.8]} 13. Qh6 {[%clk 0:02:23.6]} 13... Nxe5 {[%clk 0:02:40.5]}
14. Bxe5 {[%clk 0:02:11.7]} 14... Bxe5 {[%clk 0:02:27.3]} 15. dxe5 {[%clk
0:02:11.3]} 15... Nd7 {[%clk 0:02:19.2]} 16. f4 {[%clk 0:02:01.2]} 16... Nc5
{[%clk 0:02:14.9]} 17. Bc2 {[%clk 0:01:57.9]} 17... d4 {[%clk 0:02:15.7]} 18.
O-O-O {[%clk 0:01:57.2]} 18... d3 {[%clk 0:02:06.8]} 19. h4 {[%clk 0:01:53.4]}
19... Bxg2 {[%clk 0:02:03.1]} 20. Rh2 {[%clk 0:01:51.4]} 20... Bf3 {[%clk
0:02:04]} 21. Rg1 {[%clk 0:01:32.2]} 21... dxc2 {[%clk 0:01:59.1]} 22. h5 {[%clk
0:01:32.3]} 22... Qd1+ {[%clk 0:01:44.6]} 23. Rxd1 {[%clk 0:01:26.4]} 23...
cxd1=Q+ {[%clk 0:01:45.4]} 24. Nxd1 {[%clk 0:01:26]} 24... Nb3+ {[%clk
0:01:46.9]} 25. Kb1 {[%clk 0:01:11.4]} 25... Rc1# {[%clk 0:01:48.8]} 0-1

[Event "*** Titled Tuesday Blitz"]
[Site "Chess.com"]
[Date "2019.12.03"]
[Round "2"]
[White "Ceejay271"]
[Black "Alexander_Moskalenko"]
[Result "0-1"]
[WhiteElo "2357"]
[BlackElo "2840"]
[TimeControl "180+2"]
[EndTime "13:18:23 PST"]
[Termination "Alexander_Moskalenko won by resignation"]

1. Nf3 {[%clk 0:03:01.9]} 1... d5 {[%clk 0:02:58.3]} 2. d4 {[%clk 0:03:01.1]}
2... c6 {[%clk 0:02:59.4]} 3. c4 {[%clk 0:03:01.7]} 3... Nf6 {[%clk 0:03:00.1]}
4. cxd5 {[%clk 0:03:02.7]} 4... cxd5 {[%clk 0:03:01.1]} 5. Nc3 {[%clk
0:03:03.6]} 5... Nc6 {[%clk 0:03:02.6]} 6. Bf4 {[%clk 0:03:03.7]} 6... a6 {[%clk
0:03:03.7]} 7. Rc1 {[%clk 0:03:02.2]} 7... Bg4 {[%clk 0:03:03.4]} 8. Ne5 {[%clk
0:03:02]} 8... e6 {[%clk 0:03:03.1]} 9. Nxg4 {[%clk 0:02:57.3]} 9... Nxg4 {[%clk
0:03:03.2]} 10. e3 {[%clk 0:02:58.5]} 10... Nf6 {[%clk 0:03:04.4]} 11. Bd3
{[%clk 0:02:59]} 11... Bd6 {[%clk 0:03:05.3]} 12. Bg5 {[%clk 0:02:58.4]} 12...
h6 {[%clk 0:03:05.6]} 13. Bh4 {[%clk 0:02:57.1]} 13... O-O {[%clk 0:03:06.3]}
14. O-O {[%clk 0:02:57.5]} 14... Be7 {[%clk 0:03:05.9]} 15. a3 {[%clk
0:02:53.9]} 15... Ne8 {[%clk 0:03:06.8]} 16. Bg3 {[%clk 0:02:53.5]} 16... Bd6
{[%clk 0:03:08]} 17. Na4 {[%clk 0:02:49.4]} 17... Bxg3 {[%clk 0:03:07.7]} 18.
hxg3 {[%clk 0:02:50]} 18... Nd6 {[%clk 0:03:09.6]} 19. Nc5 {[%clk 0:02:49.6]}
19... Ne7 {[%clk 0:03:05.6]} 20. b4 {[%clk 0:02:46.5]} 20... a5 {[%clk
0:03:06.9]} 21. b5 {[%clk 0:02:46.6]} 21... b6 {[%clk 0:03:06.9]} 22. Nb3 {[%clk
0:02:44.2]} 22... Qd7 {[%clk 0:03:07.3]} 23. a4 {[%clk 0:02:44.9]} 23... Rfc8
{[%clk 0:03:08.8]} 24. Qe2 {[%clk 0:02:43.9]} 24... Rxc1 {[%clk 0:03:09.5]} 25.
Rxc1 {[%clk 0:02:44.5]} 25... Rc8 {[%clk 0:03:11.4]} 26. Rxc8+ {[%clk
0:02:45.1]} 26... Qxc8 {[%clk 0:03:13.3]} 27. Qc2 {[%clk 0:02:45.6]} 27... Qb8
{[%clk 0:03:06.7]} 28. Nd2 {[%clk 0:02:38.1]} 28... g5 {[%clk 0:03:05]} 29. g4
{[%clk 0:02:35.1]} 29... Kg7 {[%clk 0:03:02.6]} 30. f3 {[%clk 0:02:31.7]} 30...
Ng8 {[%clk 0:02:59]} 31. e4 {[%clk 0:02:29.8]} 31... Ne7 {[%clk 0:03:00.5]} 32.
e5 {[%clk 0:02:29.1]} 32... Ne8 {[%clk 0:03:01.1]} 33. Nf1 {[%clk 0:02:25.7]}
33... f6 {[%clk 0:03:02.4]} 34. exf6+ {[%clk 0:02:23.4]} 34... Nxf6 {[%clk
0:03:04.3]} 35. Kf2 {[%clk 0:02:20]} 35... Qf4 {[%clk 0:03:02.9]} 36. Qc3 {[%clk
0:02:13.5]} 36... Nxg4+ {[%clk 0:03:02.3]} 37. Ke2 {[%clk 0:02:11.9]} 37... Nf6
{[%clk 0:03:03]} 38. g3 {[%clk 0:02:09.3]} 38... Qd6 {[%clk 0:03:03.2]} 39. Kf2
{[%clk 0:02:08.8]} 39... Qb8 {[%clk 0:02:57.6]} 40. Ne3 {[%clk 0:02:07.8]} 40...
Qc8 {[%clk 0:02:58.6]} 41. Qd2 {[%clk 0:02:03.6]} 41... Qc7 {[%clk 0:02:58.3]}
42. Bb1 {[%clk 0:02:00.4]} 42... Kf7 {[%clk 0:02:54.9]} 43. Qd3 {[%clk
0:02:00.8]} 43... Qc1 {[%clk 0:02:55]} 44. Ng4 {[%clk 0:01:54.5]} 44... Nxg4+
{[%clk 0:02:53.6]} 45. fxg4 {[%clk 0:01:55.6]} 45... Ke8 {[%clk 0:02:55.5]} 46.
Qh7 {[%clk 0:01:43.6]} 46... Qd2+ {[%clk 0:02:54.6]} 47. Kf3 {[%clk 0:01:43.7]}
47... Qxd4 {[%clk 0:02:56.5]} 48. Bg6+ {[%clk 0:01:33]} 48... Kd7 {[%clk
0:02:56.8]} 49. Qxh6 {[%clk 0:01:34]} 49... Qf6+ {[%clk 0:02:56.9]} 0-1

[Event "*** Titled Tuesday Blitz"]
[Site "Chess.com"]
[Date "2019.12.03"]
[Round "2"]
[White "przemekpiotrowski"]
[Black "Sjakkerntobi"]
[Result "1-0"]
[WhiteElo "2439"]
[BlackElo "2133"]
[TimeControl "180+2"]
[EndTime "13:18:42 PST"]
[Termination "przemekpiotrowski won by checkmate"]

1. d4 {[%clk 0:03:01.9]} 1... Nf6 {[%clk 0:03:00.8]} 2. Nf3 {[%clk 0:03:02.7]}
2... e6 {[%clk 0:03:01.2]} 3. g3 {[%clk 0:03:04.2]} 3... c5 {[%clk 0:03:01.6]}
4. Bg2 {[%clk 0:03:03.9]} 4... Nc6 {[%clk 0:03:02.3]} 5. O-O {[%clk 0:03:05.4]}
5... Be7 {[%clk 0:03:02.4]} 6. c4 {[%clk 0:03:06.6]} 6... cxd4 {[%clk
0:03:01.7]} 7. Nxd4 {[%clk 0:03:07.2]} 7... O-O {[%clk 0:02:55.9]} 8. Nc3 {[%clk
0:03:08.6]} 8... a6 {[%clk 0:02:48.6]} 9. b3 {[%clk 0:03:06.7]} 9... Qc7 {[%clk
0:02:47.8]} 10. Bb2 {[%clk 0:03:03.8]} 10... b6 {[%clk 0:02:36.8]} 11. Rc1
{[%clk 0:03:05.2]} 11... Bb7 {[%clk 0:02:36.9]} 12. Nd5 {[%clk 0:02:46.7]} 12...
exd5 {[%clk 0:02:18.5]} 13. cxd5 {[%clk 0:02:45.1]} 13... Nxd5 {[%clk
0:01:44.6]} 14. Bxd5 {[%clk 0:02:41.9]} 14... Bc5 {[%clk 0:01:35.1]} 15. Nf5
{[%clk 0:02:33.5]} 15... Nb4 {[%clk 0:00:20]} 16. Bxb7 {[%clk 0:02:15.9]} 16...
Qxb7 {[%clk 0:00:21.9]} 17. Bxg7 {[%clk 0:02:02]} 17... Nxa2 {[%clk 0:00:20.7]}
18. Bf6 {[%clk 0:01:55.2]} 18... Rfd8 {[%clk 0:00:18.9]} 19. Qd2 {[%clk
0:01:52.6]} 19... Re8 {[%clk 0:00:14]} 20. Qg5+ {[%clk 0:01:51.1]} 20... Kf8
{[%clk 0:00:14.3]} 21. Qg7# {[%clk 0:01:52]} 1-0

[Event "*** Titled Tuesday Blitz"]
[Site "Chess.com"]
[Date "2019.12.03"]
[Round "2"]
[White "Noam_Vitenberg"]
[Black "maciek_92"]
[Result "0-1"]
[WhiteElo "2352"]
[BlackElo "2771"]
[TimeControl "180+2"]
[EndTime "13:18:43 PST"]
[Termination "maciek_92 won by resignation"]

1. d4 {[%clk 0:03:01.9]} 1... Nf6 {[%clk 0:03:01.4]} 2. c4 {[%clk 0:02:55.8]}
2... e6 {[%clk 0:03:02.5]} 3. Nc3 {[%clk 0:02:56.5]} 3... Bb4 {[%clk 0:03:02.7]}
4. Qc2 {[%clk 0:02:56.9]} 4... O-O {[%clk 0:03:03.7]} 5. Nf3 {[%clk 0:02:56.1]}
5... d5 {[%clk 0:03:04]} 6. cxd5 {[%clk 0:02:56.1]} 6... Bxc3+ {[%clk
0:03:04.2]} 7. Qxc3 {[%clk 0:02:52.7]} 7... Ne4 {[%clk 0:03:04.8]} 8. Qc2 {[%clk
0:02:52.9]} 8... exd5 {[%clk 0:03:06.7]} 9. Bf4 {[%clk 0:02:51.4]} 9... Nc6
{[%clk 0:03:07.1]} 10. e3 {[%clk 0:02:49.8]} 10... Bf5 {[%clk 0:03:08.1]} 11.
Qb3 {[%clk 0:02:33.8]} 11... Na5 {[%clk 0:02:53.9]} 12. Qd1 {[%clk 0:02:26]}
12... Qe7 {[%clk 0:02:27]} 13. Qa4 {[%clk 0:02:10.9]} 13... b6 {[%clk
0:02:22.7]} 14. Be2 {[%clk 0:02:02.8]} 14... Bd7 {[%clk 0:02:14.7]} 15. Qb4
{[%clk 0:01:35.1]} 15... Qxb4+ {[%clk 0:02:14.1]} 16. Kf1 {[%clk 0:00:04.9]}
16... Qxb2 {[%clk 0:02:12.7]} 17. Re1 {[%clk 0:00:03.6]} 17... c5 {[%clk
0:02:08.3]} 18. dxc5 {[%clk 0:00:02.5]} 18... bxc5 {[%clk 0:02:09.1]} 19. g3
{[%clk 0:00:03]} 19... Bh3+ {[%clk 0:02:09.2]} 20. Kg1 {[%clk 0:00:03.6]} 20...
Nc4 {[%clk 0:02:10.4]} 21. Ng5 {[%clk 0:00:02.7]} 21... Nxg5 {[%clk 0:02:09.7]}
22. Bxg5 {[%clk 0:00:04.6]} 22... Qd2 {[%clk 0:02:10.9]} 0-1